fUST/lending_fUST_20241029
["ID","MTS","AMOUNT","RATE_DAILY","PERIOD"]
[340948977,1730147441429,-1374.03,0.00025205,4]
[340948978,1730147441438,-1161.05,0.00025205,4]
[340948979,1730147441448,-496.53964314,0.00025205,4]
[340948980,1730147441457,-500.0,0.00025205,4]
[340948981,1730147441466,-500.0,0.00025205,4]
[340948982,1730147441475,-500.0,0.00025205,4]
[340948983,1730147441484,-500.0,0.00025205,4]
[340948984,1730147441493,-455.43,0.00025205,4]
[340948985,1730147441503,-500.0,0.00025205,4]
[340948986,1730147441512,-160.64488666,0.00025205,4]
[340948987,1730147441521,-500.0,0.00025205,4]
[340948988,1730147441531,-500.0,0.00025205,4]
[340948989,1730147441540,-500.0,0.00025205,4]
[340948990,1730147441550,-500.0,0.00025205,4]
[340948991,1730147441559,-500.0,0.00025205,4]
[340948992,1730147441568,-500.0,0.00025205,4]
[340948993,1730147441577,-500.0,0.00025205,4]
[340948994,1730147441587,-500.0,0.00025205,4]
[340948995,1730147441596,-500.0,0.00025205,4]
[340948996,1730147441605,-500.0,0.00025205,4]
[340948997,1730147441614,-917.35,0.00025205,4]
[340948998,1730147441623,-500.0,0.00025205,4]
[340948999,1730147441633,-658.48,0.00025205,4]
[340949000,1730147441642,-500.0,0.00025205,4]
[340949001,1730147441651,-608.05,0.00025205,4]
[340949002,1730147441660,-500.0,0.00025205,4]
[340949003,1730147441669,-500.0,0.00025205,4]
[340949004,1730147441678,-500.0,0.00025205,4]
[340949005,1730147441687,-500.0,0.00025205,4]
[340949006,1730147441697,-500.0,0.00025205,4]
[340949007,1730147441706,-626.47,0.00025205,4]
[340949008,1730147441715,-500.0,0.00025205,4]
[340949009,1730147441724,-500.0,0.00025205,4]
[340949010,1730147441733,-500.0,0.00025205,4]
[340949011,1730147441742,-500.0,0.00025205,4]
[340949012,1730147441752,-500.0,0.00025205,4]
[340949013,1730147441761,-500.0,0.00025205,4]
[340949014,1730147441770,-217.576597,0.00025205,4]
[340949015,1730147441779,-500.0,0.00025205,4]
[340949016,1730147441789,-151.282783,0.00025403,2]
[340949017,1730147441798,-500.0,0.00025479,4]
[340949018,1730147441807,-500.0,0.00025479,4]
[340949019,1730147441816,-500.0,0.00025479,4]
[340949020,1730147441825,-500.0,0.00025479,4]
[340949021,1730147441838,-500.0,0.00025479,4]
[340949022,1730147441848,-510.02888362,0.00025479,4]
[340949023,1730147441858,-540.10687247,0.00025479,4]
[340949024,1730147441868,-500.0,0.00025479,4]
[340949025,1730147441878,-500.0,0.00025479,4]
[340949026,1730147441888,-500.0,0.00025479,4]
[340949027,1730147441897,-500.0,0.00025479,4]
[340949028,1730147441907,-500.0,0.00025479,4]
[340949029,1730147441917,-343.82,0.00025479,4]
[340949030,1730147441926,-500.0,0.00025479,4]
[340949031,1730147441935,-500.0,0.00025479,4]
[340949032,1730147441945,-500.0,0.00025479,4]
[340949033,1730147441954,-723.67,0.00025479,4]
[340949034,1730147441964,-1374.03,0.00025479,4]
[340949035,1730147441973,-1161.05,0.00025479,4]
[340949036,1730147441982,-500.0,0.00025479,4]
[340949037,1730147441991,-500.0,0.00025479,4]
[340949038,1730147442001,-500.0,0.00025479,4]
[340949039,1730147442010,-500.0,0.00025479,4]
[340949040,1730147442019,-500.0,0.00025479,4]
[340949041,1730147442030,-500.0,0.00025479,4]
[340949042,1730147442039,-500.0,0.00025479,4]
[340949043,1730147442049,-500.0,0.00025479,4]
[340949044,1730147442059,-500.0,0.00025479,4]
[340949045,1730147442068,-500.0,0.00025479,4]
[340949046,1730147442077,-500.0,0.00025479,4]
[340949047,1730147442088,-500.0,0.00025479,4]
[340949048,1730147442097,-500.0,0.00025479,4]
[340949049,1730147442106,-249.87,0.00025479,4]
[340949050,1730147442116,-229.11,0.00025479,4]
[340949051,1730147442125,-917.35,0.00025479,4]
[340949052,1730147442134,-658.48,0.00025479,4]
[340949053,1730147442143,-500.0,0.00025479,4]
[340949054,1730147442152,-500.0,0.00025479,4]
[340949055,1730147442161,-500.0,0.00025479,4]
[340949056,1730147442170,-170.43214552,0.00025479,4]
[340949057,1730147442179,-500.0,0.00025479,4]
[340949058,1730147442187,-500.0,0.00025479,4]
[340949059,1730147442196,-500.0,0.00025479,4]
[340949060,1730147442206,-500.0,0.00025479,4]
[340949061,1730147442215,-500.0,0.00025479,4]
[340949062,1730147442224,-500.0,0.00025479,4]
[340949063,1730147442233,-500.0,0.00025479,4]
[340949064,1730147442243,-26096.2093746,0.00025733,3]
[340949065,1730147442252,-21966.5435108,0.00025733,3]
[340949066,1730147442262,-500.0,0.00025753,4]
[340949067,1730147442272,-322.41074001,0.00025753,4]
[340949068,1730147442281,-500.0,0.00025753,4]
[340949069,1730147442290,-500.0,0.00025753,4]
[340949070,1730147442299,-355.76,0.00025753,4]
[340949071,1730147442308,-621.19736723,0.00025753,4]
[340949072,1730147442317,-390.47,0.00025753,4]
[340949073,1730147442327,-500.0,0.00025753,4]
[340949074,1730147442339,-500.0,0.00025753,4]
[340949075,1730147442349,-500.0,0.00025753,4]
[340949076,1730147442358,-500.0,0.00025753,4]
[340949077,1730147442368,-500.0,0.00025753,4]
[340949078,1730147442377,-723.67,0.00025753,4]
[340949079,1730147442386,-1374.03,0.00025753,4]
[340949080,1730147442395,-1161.05,0.00025753,4]
[340949081,1730147442405,-500.0,0.00025753,4]
[340949082,1730147442415,-500.0,0.00025753,4]
[340949083,1730147442425,-500.0,0.00025753,4]
[340949084,1730147442434,-500.0,0.00025753,4]
[340949085,1730147442443,-500.0,0.00025753,4]
[340949086,1730147442453,-500.0,0.00025753,4]
[340949087,1730147442463,-500.0,0.00025753,4]
[340949088,1730147442471,-500.0,0.00025753,4]
[340949089,1730147442481,-500.0,0.00025753,4]
[340949090,1730147442490,-500.0,0.00025753,4]
[340949091,1730147442500,-500.0,0.00025753,4]
[340949092,1730147442509,-500.0,0.00025753,4]
[340949093,1730147442519,-917.35,0.00025753,4]
[340949094,1730147442529,-658.48,0.00025753,4]
[340949095,1730147442538,-500.0,0.00025753,4]
[340949096,1730147442547,-500.0,0.00025753,4]
[340949097,1730147442556,-500.0,0.00025753,4]
[340949098,1730147442565,-500.0,0.00025753,4]
[340949099,1730147442574,-500.0,0.00025753,4]
[340949100,1730147442584,-500.0,0.00025753,4]
[340949101,1730147442593,-500.0,0.00025753,4]
[340949102,1730147442603,-500.0,0.00025753,4]
[340949103,1730147442612,-220.28,0.00025753,4]
[340949104,1730147442621,-500.0,0.00025753,4]
[340949105,1730147442631,-151.282783,0.00025812,2]
[340949106,1730147442640,-203.203615,0.00025812,2]
[340949107,1730147442650,-500.0,0.00026027,4]
[340949108,1730147442659,-500.0,0.00026027,4]
[340949109,1730147442668,-500.0,0.00026027,4]
[340949110,1730147442678,-500.0,0.00026027,4]
[340949111,1730147442687,-517.35,0.00026027,4]
[340949112,1730147442696,-500.0,0.00026027,4]
[340949113,1730147442705,-500.0,0.00026027,4]
[340949114,1730147442715,-723.67,0.00026027,4]
[340949115,1730147442724,-1374.03,0.00026027,4]
[340949116,1730147442733,-1161.05,0.00026027,4]
[340949117,1730147442742,-500.0,0.00026027,4]
[340949118,1730147442751,-500.0,0.00026027,4]
[340949119,1730147442761,-500.0,0.00026027,4]
[340949120,1730147442770,-500.0,0.00026027,4]
[340949121,1730147442779,-500.0,0.00026027,4]
[340949122,1730147442788,-227.62,0.00026027,4]
[340949123,1730147442798,-506.91,0.00026027,4]
[340949124,1730147442807,-500.0,0.00026027,4]
[340949125,1730147442817,-500.0,0.00026027,4]
[340949126,1730147442826,-500.0,0.00026027,4]
[340949127,1730147442836,-500.0,0.00026027,4]
[340949128,1730147442845,-917.35,0.00026027,4]
[340949129,1730147442855,-658.48,0.00026027,4]
[340949130,1730147442864,-265.94529112,0.00026027,4]
[340949131,1730147442874,-500.0,0.00026027,4]
[340949132,1730147442883,-500.0,0.00026027,4]
[340949133,1730147442893,-500.0,0.00026027,4]
[340949134,1730147442902,-500.0,0.00026027,4]
[340949135,1730147442911,-483.03726029,0.00026027,4]
[340949136,1730147442921,-500.0,0.00026027,4]
[340949137,1730147442930,-500.0,0.00026027,4]
[340949138,1730147442939,-500.0,0.00026027,4]
[340949139,1730147442949,-1000.0,0.00026201,2]
[340949140,1730147442958,-26096.2093746,0.00026281,4]
[340949141,1730147442967,-21966.5435108,0.00026281,4]
[340949142,1730147442977,-500.0,0.00026301,4]
[340949143,1730147442986,-500.0,0.00026301,4]
[340949144,1730147442995,-500.0,0.00026301,4]
[340949145,1730147443005,-366.82471267,0.00026301,4]
[340949146,1730147443015,-589.8,0.00026301,4]
[340949147,1730147443025,-525.09,0.00026301,4]
[340949148,1730147443034,-723.67,0.00026301,4]
[340949149,1730147443043,-1374.03,0.00026301,4]
[340949150,1730147443053,-1161.05,0.00026301,4]
[340949151,1730147443062,-500.0,0.00026301,4]
[340949152,1730147443071,-500.0,0.00026301,4]
[340949153,1730147443084,-500.0,0.00026301,4]
[340949154,1730147443093,-500.0,0.00026301,4]
[340949155,1730147443103,-500.0,0.00026301,4]
[340949156,1730147443112,-500.0,0.00026301,4]
[340949157,1730147443122,-500.0,0.00026301,4]
[340949158,1730147443131,-500.0,0.00026301,4]
[340949159,1730147443140,-500.0,0.00026301,4]
[340949160,1730147443150,-917.35,0.00026301,4]
[340949161,1730147443159,-658.48,0.00026301,4]
[340949162,1730147443169,-500.0,0.00026301,4]
[340949163,1730147443178,-500.0,0.00026301,4]
[340949164,1730147443187,-500.0,0.00026301,4]
[340949165,1730147443196,-500.0,0.00026301,4]
[340949166,1730147443206,-500.0,0.00026301,4]
[340949167,1730147443216,-500.0,0.00026301,4]
[340949168,1730147443225,-500.0,0.00026301,4]
[340949169,1730147443234,-150.0,0.00026302,2]
[340949170,1730147443243,-1000.0,0.00026342,2]
[340949171,1730147443253,-150.376,0.00026431,2]
[340949172,1730147443262,-165.31,0.00026431,2]
[340949174,1730147443271,-1000.0,0.00026432,2]
[340949176,1730147443280,-1000.0,0.00026487,2]
[340949178,1730147443290,-26096.2093746,0.00026572,4]
[340949180,1730147443299,-21966.5435108,0.00026572,4]
[340949182,1730147443309,-500.0,0.00026575,4]
[340949183,1730147443318,-500.0,0.00026575,4]
[340949184,1730147443328,-500.0,0.00026575,4]
[340949187,1730147443340,-723.67,0.00026575,4]
[340949189,1730147443350,-1374.03,0.00026575,4]
[340949191,1730147443360,-1161.05,0.00026575,4]
[340949192,1730147443369,-500.0,0.00026575,4]
[340949194,1730147443379,-500.0,0.00026575,4]
[340949196,1730147443388,-500.0,0.00026575,4]
[340949198,1730147443398,-500.0,0.00026575,4]
[340949200,1730147443408,-500.0,0.00026575,4]
[340949202,1730147443419,-500.0,0.00026575,4]
[340949203,1730147443430,-500.0,0.00026575,4]
[340949205,1730147443440,-500.0,0.00026575,4]
[340949207,1730147443450,-500.0,0.00026575,4]
[340949208,1730147443460,-917.35,0.00026575,4]
[340949210,1730147443469,-658.48,0.00026575,4]
[340949212,1730147443479,-500.0,0.00026575,4]
[340949213,1730147443488,-500.0,0.00026575,4]
[340949215,1730147443498,-431.6398456,0.00026575,4]
[340949216,1730147443508,-441.49,0.00026575,4]
[340949218,1730147443517,-483.51977214,0.00026575,4]
[340949219,1730147443526,-246.57813001,0.00026575,4]
[340949221,1730147443535,-500.0,0.00026575,4]
[340949222,1730147443544,-150.112233,0.000267,17]
[340949225,1730147443554,-420.0,0.0002672,2]
[340949226,1730147443563,-151.0,0.00026747,7]
[340949229,1730147443572,-151.0,0.00026747,7]
[340949230,1730147443584,-151.0,0.00026747,7]
[340949232,1730147443593,-156.440351,0.00026747,7]
[340949233,1730147443603,-151.0,0.00026747,7]
[340949235,1730147443612,-156.440351,0.00026747,7]
[340949237,1730147443621,-500.0,0.00026849,4]
[340949239,1730147443631,-500.0,0.00026849,4]
[340949240,1730147443641,-500.0,0.00026849,4]
[340949242,1730147443650,-723.67,0.00026849,4]
[340949243,1730147443660,-1374.03,0.00026849,4]
[340949244,1730147443669,-1161.05,0.00026849,4]
[340949245,1730147443678,-500.0,0.00026849,4]
[340949246,1730147443688,-500.0,0.00026849,4]
[340949247,1730147443697,-187.49513719,0.00026849,4]
[340949248,1730147443707,-500.0,0.00026849,4]
[340949249,1730147443716,-500.0,0.00026849,4]
[340949250,1730147443726,-500.0,0.00026849,4]
[340949251,1730147443736,-500.0,0.00026849,4]
[340949252,1730147443750,-500.0,0.00026849,4]
[340949253,1730147443760,-500.0,0.00026849,4]
[340949254,1730147443769,-917.35,0.00026849,4]
[340949256,1730147443779,-658.48,0.00026849,4]
[340949257,1730147443790,-500.0,0.00026849,4]
[340949258,1730147443800,-500.0,0.00026849,4]
[340949259,1730147443810,-272.32642851,0.00026849,4]
[340949260,1730147443819,-150.112233,0.000269,12]
[340949261,1730147443829,-13515.99420365,0.00026901,2]
[340949262,1730147443840,-373.619,0.0002697,2]
[340949263,1730147443849,-9800.92098753,0.00027,120]
[340949264,1730147443859,-151.0,0.00027,7]
[340949265,1730147443868,-172.422767,0.00027,7]
[340949266,1730147443878,-172.422767,0.00027,7]
[340949267,1730147443888,-151.0,0.00027,7]
[340949268,1730147443897,-26096.2093746,0.00027077,4]
[340949269,1730147443907,-21966.5435108,0.00027077,4]
[340949270,1730147443916,-151.0,0.00027087,7]
[340949271,1730147443927,-156.440351,0.00027087,7]
[340949272,1730147443936,-151.0,0.00027087,7]
[340949273,1730147443945,-156.440351,0.00027087,7]
[340949274,1730147443954,-172.422767,0.00027087,7]
[340949275,1730147443963,-172.422767,0.00027087,7]
[340949276,1730147443972,-151.0,0.00027087,7]
[340949277,1730147443982,-52192.4187493,0.00027087,4]
[340949278,1730147443991,-43933.0870217,0.00027087,4]
[340949280,1730147444001,-151.0,0.00027097,7]
[340949283,1730147444116,-151.0,0.00027097,7]
[340949284,1730147444127,-151.0,0.00027097,7]
[340949285,1730147444137,-151.0,0.00027097,7]
[340949286,1730147444147,-153.607424,0.00027097,7]
[340949287,1730147444156,-151.0,0.00027097,7]
[340949288,1730147444166,-161.933641,0.00027097,7]
[340949289,1730147444176,-151.0,0.00027097,7]
[340949290,1730147444185,-161.933641,0.00027097,7]
[340949291,1730147444194,-151.0,0.00027097,7]
[340949292,1730147444203,-151.0,0.00027097,7]
[340949293,1730147444213,-259.855488,0.00027097,7]
[340949294,1730147444222,-259.855488,0.00027097,7]
[340949295,1730147444232,-151.0,0.00027097,7]
[340949296,1730147444241,-151.0,0.00027097,7]
[340949297,1730147444250,-151.0,0.00027097,7]
[340949298,1730147444260,-393.986144,0.00027097,7]
[340949299,1730147444272,-393.986144,0.00027097,7]
[340949300,1730147444282,-151.0,0.00027097,7]
[340949301,1730147444292,-151.0,0.00027097,7]
[340949302,1730147444301,-366.15428,0.00027097,7]
[340949303,1730147444310,-212.754161,0.00027097,7]
[340949304,1730147444320,-366.15428,0.00027097,7]
[340949305,1730147444331,-212.754161,0.00027097,7]
[340949306,1730147444342,-193.269162,0.00027097,7]
[340949307,1730147444351,-193.269162,0.00027097,7]
[340949308,1730147444361,-43933.0870217,0.00027097,4]
[340949309,1730147444370,-3880.502016,0.00027106,2]
[340949310,1730147444381,-28068.66223572,0.00027107,2]
[340949311,1730147444470,-2010.25245432,0.00027107,2]
[340949312,1730147444482,-1951.91900167,0.00027107,2]
[340949316,1730147446271,-334.64,0.0002488,10]
[340949317,1730147446280,-500.0,0.00025479,4]
[340949318,1730147446290,-500.0,0.00025753,4]
[340949319,1730147446299,-500.0,0.00026027,4]
[340949320,1730147446308,-500.0,0.00026301,4]
[340949321,1730147446317,-500.0,0.00026575,4]
[340949322,1730147446327,-194.7109059,0.00026804,2]
[340949323,1730147446428,-2114.59544557,0.00026804,2]
[340949371,1730147924042,-151.282783,0.00024583,2]
[340949372,1730147924076,-203.203616,0.00024583,2]
[340949373,1730147924109,-193.339578,0.00024583,2]
[340949374,1730147924142,-300.0,0.00024656,2]
[340949375,1730147924177,-500.0,0.00024657,4]
[340949376,1730147924210,-500.0,0.00024657,4]
[340949377,1730147924243,-500.0,0.00024657,4]
[340949378,1730147924276,-500.0,0.00024657,4]
[340949379,1730147924309,-500.0,0.00024657,4]
[340949380,1730147924341,-500.0,0.00024657,4]
[340949381,1730147924372,-500.0,0.00024657,4]
[340949382,1730147924404,-500.0,0.00024657,4]
[340949383,1730147924436,-500.0,0.00024657,4]
[340949384,1730147924473,-48.348046,0.00024657,4]
[340949385,1730147924487,-151.282783,0.00024657,4]
[340949386,1730147924499,-203.203616,0.00024657,4]
[340949387,1730147924511,-97.165555,0.00024657,4]
[340949388,1730147924520,-96.174023,0.00024657,4]
[340949389,1730147924532,-300.0,0.00024657,4]
[340949390,1730147924543,-103.825977,0.00024657,4]
[340949391,1730147924553,-396.174023,0.00024657,4]
[340949392,1730147924569,-103.825977,0.00024657,4]
[340949393,1730147924582,-396.174023,0.00024657,4]
[340949394,1730147924593,-103.825977,0.00024657,4]
[340949395,1730147924603,-396.174023,0.00024657,4]
[340949396,1730147924620,-103.825977,0.00024657,4]
[340949397,1730147924629,-396.174023,0.00024657,4]
[340949398,1730147924640,-103.825977,0.00024657,4]
[340949399,1730147924650,-396.174023,0.00024657,4]
[340949400,1730147924661,-241.29710359,0.00024657,4]
[340949401,1730147924670,-258.70289641,0.00024657,4]
[340949402,1730147924682,-241.29710359,0.00024657,4]
[340949403,1730147924691,-258.70289641,0.00024657,4]
[340949404,1730147924702,-241.29710359,0.00024657,4]
[340949405,1730147924712,-258.70289641,0.00024657,4]
[340949406,1730147924724,-241.29710359,0.00024657,4]
[340949407,1730147924733,-258.70289641,0.00024657,4]
[340949408,1730147924754,-241.29710359,0.00024657,4]
[340949409,1730147924763,-258.70289641,0.00024657,4]
[340949411,1730148346139,-493.60191296,0.00023066,2]
[340949412,1730148425105,-165.527637,0.00022687,2]
[340949413,1730148425125,-18.00453214,0.00023066,2]
[340949414,1730148425147,-288.0587576,0.00023184,2]
[340949415,1730148435235,157.518062,0.00013973,2]
[340949416,1730148436138,-11.9412424,0.00023184,2]
[340949417,1730148436159,-300.0,0.00023184,2]
[340949418,1730148436182,-458.04755431,0.00023185,2]
[340949419,1730148438106,-14254.05872844,0.00023185,2]
[340949420,1730148445105,-528.825345,0.00023072,2]
[340949421,1730148445129,-1104.97714315,0.00023185,2]
[340949427,1730148561141,-1031.447246,0.00022938,2]
[340949428,1730148561162,-160.0,0.00023,2]
[340949429,1730148561183,-36.95572524,0.00023072,2]
[340949430,1730148568107,-236.85100466,0.00023072,2]
[340949431,1730148568130,-9082.9165741,0.00023185,2]
[340949432,1730148568151,-165.527637,0.00023278,2]
[340949433,1730148568172,-300.0,0.00023283,2]
[340949434,1730148568192,-300.0,0.00023284,2]
[340949435,1730148568214,-4816.60760842,0.00023287,2]
[340949436,1730148568237,-1031.447246,0.00023623,2]
[340949437,1730148568259,-160.033078,0.00023793,2]
[340949438,1730148568280,-160.033078,0.00023806,2]
[340949439,1730148568302,-160.033078,0.0002382,2]
[340949440,1730148568327,-160.033078,0.00023833,2]
[340949441,1730148568348,-160.033078,0.00023846,2]
[340949442,1730148568369,-160.033078,0.00023859,2]
[340949443,1730148568390,-165.527637,0.00023869,2]
[340949444,1730148568411,-160.033078,0.00023873,2]
[340949445,1730148568432,-160.033078,0.00023886,2]
[340949446,1730148568453,-160.033078,0.00023899,2]
[340949447,1730148568473,-69.41791808,0.00023912,2]
[340949464,1730148632519,-1251.28091649,0.00023085,2]
[340949465,1730148632530,-246.4046848,0.00023522,2]
[340949466,1730148632540,-90.61515992,0.00023912,2]
[340949467,1730148632550,-160.0,0.00024255,2]
[340949468,1730148632559,-1031.447246,0.00024308,2]
[340949469,1730148632569,-290.15546997,0.000245,2]
[340949470,1730148632578,-300.0,0.00024556,2]
[340949471,1730148632588,-160.79384877,0.00024557,2]
[340949472,1730148632597,-1872.33768035,0.00024557,2]
[340949480,1730148638532,-591.78089212,0.00024557,2]
[340949481,1730148638815,-1583.78430316,0.00024557,2]
[340949482,1730148638827,-1578.05452248,0.00024557,2]
[340949483,1730148638837,-151.282783,0.00024583,2]
[340949484,1730148638846,-151.282783,0.00024583,2]
[340949485,1730148638856,-151.282783,0.00024583,2]
[340949486,1730148638866,-198.271597,0.00024583,2]
[340949487,1730148638875,-300.0,0.00024656,2]
[340949488,1730148638885,-347.74686105,0.00024657,2]
[340949489,1730148638894,-500.0,0.00024657,4]
[340949490,1730148638904,-500.0,0.00024657,4]
[340949491,1730148638913,-500.0,0.00024657,4]
[340949492,1730148638923,-500.0,0.00024657,4]
[340949493,1730148638933,-500.0,0.00024657,4]
[340949494,1730148638944,-500.0,0.00024657,4]
[340949495,1730148638955,-500.0,0.00024657,4]
[340949496,1730148638965,-500.0,0.00024657,4]
[340949497,1730148638974,-500.0,0.00024657,4]
[340949498,1730148638984,-500.0,0.00024657,4]
[340949499,1730148638994,-500.0,0.00024657,4]
[340949500,1730148639003,-500.0,0.00024657,4]
[340949501,1730148639013,-500.0,0.00024657,4]
[340949502,1730148639028,-500.0,0.00024657,4]
[340949503,1730148639038,-500.0,0.00024657,4]
[340949504,1730148639048,-500.0,0.00024657,4]
[340949505,1730148639057,-500.0,0.00024657,4]
[340949506,1730148639066,-500.0,0.00024657,4]
[340949507,1730148639075,-500.0,0.00024657,4]
[340949508,1730148639085,-500.0,0.00024657,4]
[340949509,1730148639094,-500.0,0.00024657,4]
[340949510,1730148639103,-500.0,0.00024657,4]
[340949511,1730148639113,-500.0,0.00024657,4]
[340949512,1730148639123,-500.0,0.00024657,4]
[340949513,1730148639132,-500.0,0.00024657,4]
[340949514,1730148639141,-500.0,0.00024657,4]
[340949515,1730148639151,-500.0,0.00024657,4]
[340949516,1730148639160,-500.0,0.00024657,4]
[340949517,1730148639169,-500.0,0.00024657,4]
[340949518,1730148639178,-500.0,0.00024657,4]
[340949519,1730148639188,-500.0,0.00024657,4]
[340949520,1730148639197,-500.0,0.00024657,4]
[340949521,1730148639206,-500.0,0.00024657,4]
[340949522,1730148639215,-500.0,0.00024657,4]
[340949523,1730148639225,-596.82354834,0.00024657,4]
[340949524,1730148639234,-500.0,0.00024657,4]
[340949525,1730148639244,-500.0,0.00024657,4]
[340949526,1730148639254,-500.0,0.00024657,4]
[340949527,1730148639263,-519.59252662,0.00024657,4]
[340949528,1730148639272,-500.0,0.00024657,4]
[340949529,1730148639281,-500.0,0.00024657,4]
[340949530,1730148639291,-500.0,0.00024657,4]
[340949531,1730148639300,-500.0,0.00024657,2]
[340949532,1730148639310,-500.0,0.00024657,4]
[340949533,1730148639320,-500.0,0.00024657,4]
[340949534,1730148639329,-500.0,0.00024657,4]
[340949535,1730148639339,-500.0,0.00024657,4]
[340949536,1730148639348,-500.0,0.00024657,4]
[340949537,1730148639358,-500.0,0.00024657,4]
[340949538,1730148639368,-500.0,0.00024657,4]
[340949539,1730148639377,-500.0,0.00024657,4]
[340949540,1730148639387,-500.0,0.00024657,4]
[340949541,1730148639396,-500.0,0.00024657,4]
[340949542,1730148639406,-500.0,0.00024657,4]
[340949543,1730148639417,-500.0,0.00024657,4]
[340949544,1730148639427,-500.0,0.00024657,4]
[340949545,1730148639438,-346.30061975,0.00024657,4]
[340949546,1730148639448,-500.0,0.00024657,4]
[340949547,1730148639457,-231.47478788,0.00024657,4]
[340949548,1730148639467,-500.0,0.00024657,4]
[340949549,1730148639477,-500.0,0.00024657,4]
[340949550,1730148639486,-335.96899591,0.00024657,4]
[340949551,1730148639496,-500.0,0.00024657,4]
[340949552,1730148639506,-500.0,0.00024657,4]
[340949553,1730148639515,-500.0,0.00024657,4]
[340949554,1730148639524,-500.0,0.00024657,4]
[340949555,1730148639534,-1356.33,0.00024657,4]
[340949556,1730148639543,-500.0,0.00024657,4]
[340949557,1730148639554,-500.0,0.00024657,4]
[340949558,1730148639563,-507.85,0.00024657,4]
[340949559,1730148639573,-500.0,0.00024657,4]
[340949560,1730148639583,-500.0,0.00024657,4]
[340949561,1730148639592,-500.0,0.00024657,4]
[340949562,1730148639602,-1653.58,0.00024657,4]
[340949563,1730148639612,-500.0,0.00024657,4]
[340949564,1730148639621,-500.0,0.00024657,4]
[340949565,1730148639632,-500.0,0.00024657,4]
[340949566,1730148639641,-500.0,0.00024657,4]
[340949567,1730148639651,-500.0,0.00024657,4]
[340949568,1730148639660,-500.0,0.00024657,4]
[340949569,1730148639669,-500.0,0.00024657,4]
[340949570,1730148639679,-500.0,0.00024657,4]
[340949571,1730148639688,-500.0,0.00024657,4]
[340949572,1730148639698,-500.0,0.00024657,4]
[340949573,1730148639707,-500.0,0.00024657,4]
[340949574,1730148639717,-500.0,0.00024657,4]
[340949575,1730148639728,-500.0,0.00024657,4]
[340949576,1730148639738,-534.74,0.00024657,4]
[340949577,1730148639748,-500.0,0.00024657,4]
[340949578,1730148639757,-500.0,0.00024657,4]
[340949579,1730148639767,-500.0,0.00024657,4]
[340949580,1730148639776,-500.0,0.00024657,4]
[340949581,1730148639786,-500.0,0.00024657,4]
[340949582,1730148639795,-500.0,0.00024657,4]
[340949583,1730148639804,-500.0,0.00024657,4]
[340949584,1730148639814,-500.0,0.00024657,4]
[340949585,1730148639823,-734.65,0.00024657,4]
[340949586,1730148639833,-500.0,0.00024657,4]
[340949587,1730148639842,-981.83,0.00024657,4]
[340949588,1730148639851,-620.97,0.00024657,4]
[340949589,1730148639861,-500.0,0.00024657,4]